bitfinex/quotes_SOLUSD_20220114
["timestamp","ask_amount","ask_price","bid_price","bid_amount"]
[1642148434248,4.06155,146.44,146.37,10.37744782]
[1642148434651,4.06155,146.44,146.37,10.39744782]
[1642148434849,6.79355,146.44,146.37,10.39744782]
[1642148436153,36.01674102,146.44,146.37,10.39744782]
[1642148436351,33.28474102,146.44,146.37,10.39744782]
[1642148437654,43.53064102,146.44,146.37,0.15244782]
[1642148437852,2.732,146.43,146.37,0.15244782]
[1642148438052,4.65885959,146.43,146.37,0.15244782]
[1642148438254,69.52685959,146.42,146.37,0.00244782]
[1642148438455,2.732,146.41,146.37,0.00244782]
[1642148438657,4.40885959,146.41,146.37,0.00244782]
[1642148438853,10.2494,146.39,146.37,0.00244782]
[1642148439054,2.732,146.38,146.37,0.00244782]
[1642148439453,2.982,146.38,146.37,0.00244782]
[1642148439855,17.15281624,146.38,146.37,0.00244782]
[1642148440055,17.15281624,146.38,146.24,0.64]
[1642148440256,17.15281624,146.38,146.25,2.733]
[1642148440456,45.30495519,146.38,146.25,2.733]
[1642148440654,41.38513895,146.38,146.25,2.733]
[1642148440856,31.13413895,146.38,146.28,10.25]
[1642148441055,31.13413895,146.38,146.25,27.6499]
[1642148441360,31.13413895,146.38,146.25,24.9169]
[1642148441756,31.13413895,146.38,146.25,93.0169]
[1642148441957,30.88413895,146.38,146.25,93.0169]
[1642148442256,2.733,146.39,146.26,12.984]
[1642148442456,2.733,146.39,146.27,22.6698]
[1642148442658,2.733,146.39,146.28,2.733]
[1642148443357,2.983,146.39,146.29,10.249]
[1642148443758,2.983,146.39,146.29,10.499]
[1642148444358,43.0368903,146.39,146.29,10.499]
[1642148444560,40.3038903,146.39,146.28,2.733]
[1642148444761,2.733,146.38,146.28,2.733]
[1642148444959,2.983,146.38,146.28,2.733]
[1642148446061,2.983,146.38,146.25,26.2101]
[1642148446464,10.2518,146.36,146.25,26.4601]
[1642148446861,10.5018,146.36,146.25,26.4601]
[1642148447261,38.45818881,146.36,146.25,26.4601]
[1642148447663,38.45818881,146.36,146.25,94.3101]
[1642148448060,0.25,146.36,146.25,104.5617]
[1642148448461,13.2332,146.38,146.25,104.5617]
[1642148448862,31.7125129,146.37,146.25,104.5617]
[1642148449094,10.2514,146.36,146.25,104.5617]
[1642148449891,10.2514,146.36,146.26,0.06911599]
[1642148450492,10.2514,146.36,146.26,10.32021599]
[1642148450893,10.2514,146.36,146.26,10.57021599]
[1642148451495,10.5014,146.36,146.26,10.57021599]
[1642148452397,12.9834,146.38,146.26,78.42021599]
[1642148452597,2.733,146.38,146.27,2.733]
[1642148452797,3.89304546,146.39,146.28,10.2494]
[1642148452999,3.89304546,146.39,146.28,10.4994]
[1642148453000,28.2334161,146.38,146.28,10.4994]
[1642148453400,40.43992812,146.38,146.26,4.46188473]
[1642148453599,40.43992812,146.38,146.26,1.72888473]
[1642148453800,40.68992812,146.38,146.26,1.72888473]
[1642148454406,1.95651202,146.37,146.26,10.2509]
[1642148454602,1.95651202,146.37,146.26,10.5009]
[1642148454805,12.45731202,146.37,146.26,10.5009]
[1642148455702,2.733,146.36,146.26,10.5009]
[1642148456104,2.983,146.36,146.26,10.5009]
[1642148456706,4.93951202,146.36,146.26,10.5009]
[1642148456908,2.20651202,146.36,146.27,12.9836]
[1642148457105,2.20651202,146.36,146.27,10.2506]
[1642148457305,2.20651202,146.36,146.27,10.5006]
[1642148457711,4.68951202,146.37,146.27,78.6106]
[1642148457906,1.95651202,146.37,146.31,10.248]
[1642148458108,2.20651202,146.37,146.31,10.248]
[1642148458509,1.95651202,146.38,146.31,10.498]
[1642148458710,1.95651202,146.38,146.31,10.758]
[1642148458910,1.95651202,146.38,146.32,2.733]
[1642148459110,1.95651202,146.38,146.33,10.2463]
[1642148459712,1.95651202,146.4,146.33,10.2463]
[1642148459912,0.25,146.38,146.33,10.2463]
[1642148460111,2.20651202,146.4,146.33,10.2463]
[1642148461213,2.20651202,146.4,146.33,10.4963]
[1642148462219,1.95651202,146.4,146.33,10.4963]
[1642148462417,1.95651202,146.4,146.33,18.6203]
[1642148463018,1.95651202,146.41,146.33,18.6203]
[1642148463418,1.95651202,146.41,146.33,86.4703]
[1642148463921,0.25,146.41,146.33,86.4703]
[1642148464120,0.25,146.41,146.33,86.7303]
[1642148464319,1.95651202,146.42,146.33,86.7303]
[1642148464320,2.20651202,146.42,146.33,86.7303]
[1642148465121,1.95651202,146.43,146.33,86.7303]
[1642148465323,1.95651202,146.43,146.35,67.85]
[1642148465524,1.95651202,146.43,146.38,10.2428]
[1642148466725,4.68851202,146.45,146.38,10.2428]
[1642148467952,4.93851202,146.45,146.38,10.2428]
[1642148468150,4.93851202,146.45,146.38,78.0928]
[1642148468552,4.93851202,146.45,146.38,10.2428]
[1642148468749,2.982,146.45,146.36,33.6425]
[1642148468950,2.982,146.45,146.36,23.3987]
[1642148469949,1.95651202,146.44,146.32,2.732]
[1642148470152,32.98059813,146.43,146.32,2.732]
[1642148470350,32.98059813,146.43,146.33,1.62944857]
[1642148470549,33.23059813,146.43,146.33,1.62944857]
[1642148470951,33.23059813,146.43,146.34,0.0690782]
[1642148471154,1.95651202,146.41,146.34,0.0690782]
[1642148471350,30.85108952,146.4,146.34,0.0690782]
[1642148471650,31.10108952,146.4,146.34,0.0690782]
[1642148472052,2.982,146.4,146.34,0.0690782]
[1642148472653,1.95651202,146.41,146.34,0.0690782]
[1642148473454,4.68851202,146.43,146.34,0.0690782]
[1642148473753,4.68851202,146.43,146.35,1.62944857]
[1642148473954,4.68851202,146.43,146.36,0.06906877]
[1642148474955,4.93851202,146.43,146.36,0.06906877]
[1642148475657,4.68851202,146.43,146.36,0.06906877]
[1642148475855,1.95651202,146.43,146.36,0.06906877]
[1642148477259,2.20651202,146.43,146.37,1.62944857]
[1642148477857,0.25,146.43,146.37,1.62944857]
[1642148478062,2.20651202,146.44,146.37,1.87944857]
[1642148478860,0.25,146.44,146.37,1.87944857]
[1642148479060,4.68851202,146.45,146.37,1.87944857]
[1642148479061,4.93851202,146.45,146.37,1.87944857]
[1642148479461,36.11247039,146.45,146.37,1.87944857]
[1642148479962,34.15595837,146.45,146.37,1.87944857]
[1642148480560,2.982,146.45,146.37,1.87944857]
[1642148480961,4.93851202,146.45,146.37,1.87944857]
[1642148481963,4.93851202,146.45,146.37,12.12274857]
[1642148482469,4.68851202,146.45,146.37,11.87274857]
[1642148482666,1.95651202,146.45,146.38,67.85]
[1642148482868,1.95651202,146.45,146.41,10.2404]
[1642148483066,1.95651202,146.45,146.42,0.06904046]
[1642148483268,1.95651202,146.45,146.43,6.05999999]
[1642148483467,29.96832578,146.44,146.42,0.06904046]
[1642148483667,44.731,146.43,146.39,1.62944857]
[1642148483867,4.40785959,146.43,146.39,1.62944857]
[1642148484167,14.90495959,146.43,146.39,1.62944857]
[1642148484368,12.17395959,146.43,146.39,1.62944857]
[1642148484866,14.13047161,146.43,146.39,1.62944857]
[1642148485072,1.67685959,146.42,146.39,1.62944857]
[1642148485268,34.62824848,146.41,146.39,1.62944857]
[1642148485467,34.87824848,146.41,146.39,1.62944857]
[1642148486598,2.732,146.4,146.39,1.62944857]
[1642148486800,2.732,146.4,146.33,1.62944857]
[1642148487000,2.982,146.4,146.33,1.62944857]
[1642148488000,4.93851202,146.4,146.33,1.62944857]
[1642148488401,2.20651202,146.4,146.33,1.62944857]
[1642148489202,32.49701212,146.4,146.33,1.62944857]
[1642148489702,12.9818,146.39,146.33,1.62944857]
[1642148489904,14.93831202,146.39,146.33,1.62944857]
[1642148490105,1.67685959,146.38,146.31,1.62944857]
[1642148490304,25.49913127,146.36,146.31,1.62944857]
[1642148490506,28.47472709,146.33,146.29,2.732]
[1642148490704,2.733,146.32,146.29,2.732]
[1642148490903,13.28550001,146.31,146.29,2.732]
[1642148491106,32.42034275,146.3,146.24,0.64]
[1642148491303,32.42034275,146.3,146.22,1.72888473]
[1642148491304,42.0,146.29,146.22,1.72888473]
[1642148491504,42.0,146.29,146.16,5.12548705]
[1642148491505,26.13377469,146.27,146.16,5.12548705]
[1642148491705,1.67685959,146.22,146.16,5.12548705]
[1642148492005,10.266,146.19,146.09,8.23600506]
[1642148492204,2.737,146.18,146.09,8.23600506]
[1642148492404,34.2242,146.17,146.09,8.23600506]
[1642148492606,34.2242,146.17,146.1,5.48350733]
[1642148492607,2.737,146.16,146.1,5.48350733]
[1642148492804,4.66385959,146.17,146.1,5.48350733]
[1642148493004,0.25,146.16,146.1,5.48350733]
[1642148493806,0.25,146.16,146.06,2.737]
[1642148494009,4.41385959,146.19,146.06,2.737]
[1642148494010,4.66385959,146.19,146.06,2.737]
[1642148494207,10.265,146.17,146.06,2.737]
[1642148494408,2.737,146.16,146.06,2.737]
[1642148494607,2.737,146.16,146.06,2.987]
[1642148494808,2.987,146.16,146.06,2.987]
[1642148495011,0.25,146.16,146.06,2.987]
[1642148495411,2.737,146.15,146.06,2.987]
[1642148495610,0.25,146.16,146.06,2.987]
[1642148496010,2.987,146.17,146.06,2.987]
[1642148496209,10.2656,146.16,146.06,2.987]
[1642148496610,10.5156,146.16,146.06,2.987]
[1642148496910,12.19245959,146.16,146.06,3.007]
[1642148497112,12.19245959,146.16,146.06,3.027]
[1642148497312,12.19245959,146.16,146.06,2.777]
[1642148498112,10.5156,146.16,146.06,2.777]
[1642148498312,22.60216627,146.15,146.06,2.777]
[1642148498514,2.737,146.14,146.06,0.04]
[1642148498916,2.987,146.14,146.06,0.04]
[1642148499116,4.66385959,146.14,146.06,0.04]
[1642148499818,12.42817386,146.14,146.06,0.04]
[1642148500319,29.6015304,146.12,146.06,0.04]
[1642148500518,2.738,146.11,146.06,0.04]
[1642148500717,4.41485959,146.11,146.06,0.04]
[1642148500918,1.67685959,146.1,146.06,0.04]
[1642148501216,25.89719599,146.08,146.06,0.04]
[1642148501417,16.04050001,146.07,146.06,0.04]
[1642148501819,16.29050001,146.07,146.06,0.04]
[1642148502220,16.29050001,146.07,146.03,2.737]
[1642148502418,16.29050001,146.07,145.96,2.738]
[1642148502619,16.04050001,146.07,145.96,2.738]
[1642148502821,16.04050001,146.07,145.96,2.988]
[1642148503520,16.04050001,146.07,145.97,3.90552031]
[1642148503918,16.04050001,146.07,145.97,4.15552031]
[1642148504119,17.9673596,146.07,145.97,4.15552031]
[1642148504518,17.9673596,146.07,145.97,0.25]
[1642148504719,17.9673596,146.07,145.96,2.738]
[1642148506621,17.7173596,146.07,145.96,2.738]
[1642148506824,16.04050001,146.07,145.96,2.738]
[1642148507222,16.04050001,146.07,145.94,2.739]
[1642148507626,16.04050001,146.07,145.94,2.989]
[1642148507926,16.04050001,146.07,145.94,3.249]
[1642148508322,16.29050001,146.07,145.94,3.249]
[1642148508522,13.55250001,146.07,145.94,3.249]
[1642148508921,13.30250001,146.07,145.94,81.3731]
[1642148509124,13.30250001,146.07,145.95,3.92601432]
[1642148509327,13.30250001,146.07,145.96,2.739]
[1642148509524,3.03000001,146.07,145.96,9.249]
[1642148509724,2.739,146.14,145.97,67.85]
[1642148509927,2.738,146.16,145.97,75.58994848]
[1642148510127,25.70414289,146.18,145.98,24.4797]
[1642148510324,2.738,146.17,145.98,25.95964848]
[1642148510528,2.738,146.17,145.99,69.32994848]
[1642148510927,2.738,146.17,146.0,49.282]
[1642148511126,10.266,146.16,146.05,10.2664]
[1642148511324,2.738,146.17,146.05,10.2664]
[1642148511525,2.737,146.19,146.05,10.7764]
[1642148511726,12.6084946,146.23,146.05,16.7764]
[1642148511727,2.737,146.22,146.05,16.7764]
[1642148511926,2.737,146.22,146.07,67.85]
[1642148512331,2.737,146.22,146.07,68.36]
[1642148512926,2.737,146.22,146.11,10.2628]
[1642148512927,10.2625,146.21,146.11,10.2628]
[1642148513132,2.737,146.22,146.12,67.85]
[1642148513327,2.736,146.25,146.12,67.85]
[1642148513628,1.67685959,146.28,146.13,2.736]
[1642148513829,4.41185959,146.31,146.13,2.736]
[1642148514028,4.41185959,146.31,146.13,9.246]
[1642148514229,36.41008953,146.31,146.13,9.246]
[1642148515028,36.66008953,146.31,146.13,9.246]
[1642148515227,36.66008953,146.31,146.14,14.18611432]
[1642148515228,10.2568,146.29,146.14,14.18611432]
[1642148515430,2.735,146.28,146.14,14.44611432]
[1642148515629,30.61695543,146.28,146.14,20.69611432]
[1642148515929,30.86695543,146.28,146.15,67.85]
[1642148516129,30.61695543,146.28,146.16,2.735]
[1642148516328,27.88195543,146.28,146.16,2.735]
[1642148516528,27.88195543,146.28,146.16,3.245]
[1642148516731,12.9918,146.29,146.16,3.245]
[1642148516929,2.735,146.3,146.19,10.2562]
[1642148517130,4.41185959,146.34,146.2,70.585]
[1642148517529,1.67685959,146.33,146.2,71.095]
[1642148517729,2.734,146.32,146.2,68.36]
[1642148517930,2.734,146.32,146.23,10.2536]
[1642148518332,2.734,146.34,146.23,10.5036]
[1642148518729,12.9866,146.35,146.24,2.734]
[1642148518931,12.9866,146.35,146.24,2.984]
[1642148519330,12.9866,146.35,146.24,0.25]
[1642148519929,2.734,146.35,146.25,10.2519]
[1642148520364,1.67685959,146.39,146.25,10.7619]
[1642148520529,2.733,146.38,146.25,10.7619]
[1642148520934,2.733,146.38,146.25,16.7619]
[1642148521332,2.733,146.38,146.26,67.85]
[1642148521530,2.733,146.38,146.31,10.248]
[1642148521929,2.733,146.38,146.31,10.498]
[1642148522130,2.733,146.4,146.31,10.498]
[1642148522530,2.733,146.4,146.31,10.758]
[1642148522732,2.733,146.42,146.31,10.758]
[1642148523336,2.983,146.42,146.31,10.758]
[1642148524032,33.90123508,146.41,146.31,10.758]
[1642148524231,2.732,146.4,146.31,10.248]
[1642148524433,4.65885959,146.4,146.27,2.733]
[1642148524636,4.65885959,146.4,146.27,0.25]
[1642148524835,22.78505467,146.38,146.27,0.25]
[1642148525033,2.733,146.37,146.27,0.25]
[1642148525233,25.51805467,146.38,146.27,0.25]
[1642148525434,2.733,146.39,146.28,10.2504]
[1642148525633,3.91897586,146.4,146.28,10.2504]
[1642148525834,3.91897586,146.4,146.28,10.7604]
[1642148526037,2.733,146.41,146.28,10.7604]
[1642148526235,2.733,146.41,146.29,2.733]
[1642148526435,27.25080985,146.4,146.29,2.733]
[1642148526636,2.733,146.39,146.29,10.4991]
[1642148526836,4.40985959,146.39,146.29,10.2491]
[1642148527237,2.733,146.39,146.29,10.2491]
[1642148527438,2.983,146.39,146.29,10.2491]
[1642148527966,3.91905224,146.38,146.29,10.2491]
[1642148528166,2.733,146.37,146.29,10.2491]
[1642148528366,6.90205224,146.38,146.29,10.2491]
[1642148528569,4.16905224,146.38,146.29,10.4991]
[1642148528766,3.91905224,146.38,146.33,10.2468]
[1642148528967,2.733,146.43,146.33,10.2468]
[1642148529570,2.733,146.43,146.33,78.0968]
[1642148529768,3.91884665,146.42,146.33,78.0968]
[1642148529970,3.91884665,146.42,146.33,78.6068]
[1642148532171,27.60980602,146.46,146.33,78.6068]
[1642148532470,29.34180602,146.46,146.34,2.732]
[1642148532671,29.34180602,146.46,146.35,10.2452]
[1642148532870,29.59180602,146.46,146.35,78.0952]
[1642148533070,3.91884665,146.45,146.35,10.4952]
[1642148533571,4.16884665,146.45,146.35,10.4952]
[1642148533773,4.16884665,146.45,146.35,10.7552]
[1642148534169,3.91884665,146.45,146.35,10.7552]
[1642148534374,4.16884665,146.45,146.35,10.7552]
[1642148534570,4.16884665,146.45,146.36,2.732]
[1642148534772,4.16884665,146.45,146.37,10.2436]
[1642148535074,3.91884665,146.44,146.37,0.25]
[1642148535275,28.8014477,146.43,146.34,2.732]
[1642148535473,2.732,146.42,146.34,2.982]
[1642148535674,2.982,146.42,146.34,2.732]
[1642148537276,10.2482,146.41,146.34,2.732]
[1642148537476,2.732,146.4,146.34,2.732]
[1642148537676,2.732,146.41,146.34,2.732]
[1642148537875,28.8014477,146.43,146.34,2.732]
[1642148538175,29.0514477,146.43,146.34,2.732]
[1642148538582,0.25,146.43,146.34,2.732]
[1642148538977,0.25,146.43,146.34,13.488]
[1642148539177,2.982,146.47,146.34,10.506]
[1642148539380,0.25,146.47,146.35,67.85]
[1642148539577,2.732,146.46,146.35,68.36]
[1642148539776,0.25,146.49,146.35,68.36]
[1642148539777,22.81507525,146.47,146.35,68.36]
[1642148539977,2.982,146.46,146.35,0.25]
[1642148540177,6.89990995,146.46,146.35,0.25]
[1642148540778,6.89990995,146.46,146.33,68.36]
[1642148541179,26.510926,146.44,146.33,68.1]
[1642148541382,29.242926,146.44,146.33,10.4961]
[1642148541580,29.492926,146.44,146.33,0.25]
[1642148541978,29.492926,146.44,146.28,8.982]
[1642148542180,3.91790995,146.43,146.28,2.982]
[1642148542382,2.733,146.42,146.28,2.982]
[1642148542580,27.7631127,146.41,146.3,10.2487]
[1642148543080,28.0131127,146.41,146.3,10.4987]
[1642148543482,28.0131127,146.41,146.3,78.6087]
[1642148544082,38.2612127,146.41,146.3,78.6087]
[1642148545283,38.2612127,146.41,146.3,10.4987]
[1642148545482,2.733,146.4,146.3,10.4987]
[1642148545683,10.2494,146.39,146.3,0.25]
[1642148545881,27.56808799,146.38,146.28,35.5672]
[1642148546082,2.733,146.37,146.28,25.3176]
[1642148546488,2.733,146.37,146.28,2.732]
[1642148546489,2.983,146.37,146.28,2.732]
[1642148547183,13.2338,146.37,146.28,2.732]
[1642148547583,13.2338,146.37,146.19,2.733]
[1642148547785,67.85,146.36,146.19,2.733]
[1642148547987,23.94129311,146.34,146.19,2.733]
[1642148548185,27.29578599,146.28,146.17,10.2574]
[1642148548387,30.03078599,146.28,146.17,78.1074]
[1642148548585,34.1891,146.32,146.17,10.2574]
[1642148548586,2.735,146.31,146.17,10.2574]
[1642148548785,2.735,146.35,146.18,4.22222779]
[1642148548988,2.734,146.39,146.18,4.22222779]
[1642148549187,2.734,146.39,146.19,1.48722779]
[1642148549389,36.9069,146.39,146.22,10.2539]
[1642148549586,36.9069,146.39,146.23,49.7941]
[1642148549587,2.734,146.39,146.23,49.7941]
[1642148549787,2.734,146.39,146.23,51.28132779]
[1642148549991,2.734,146.39,146.24,1.48722779]
[1642148550188,3.78229263,146.38,146.25,2.733]
[1642148550388,3.78229263,146.38,146.28,10.2501]
[1642148550687,3.78229263,146.38,146.28,16.7601]
[1642148551087,3.78229263,146.38,146.28,10.7601]
[1642148551290,30.77125912,146.4,146.28,10.7601]
[1642148551493,31.02125912,146.4,146.28,10.7601]
[1642148552687,30.77125912,146.4,146.28,10.7601]
[1642148553288,30.77125912,146.4,146.29,67.85]
[1642148553490,30.77125912,146.4,146.33,10.2467]
[1642148553890,30.77125912,146.4,146.33,10.4967]
[1642148554194,30.77125912,146.4,146.3,2.732]
[1642148554390,30.77125912,146.4,146.3,2.982]
[1642148554791,30.77125912,146.4,146.31,10.2477]
[1642148554993,31.02125912,146.4,146.31,10.4977]
[1642148555491,30.77125912,146.4,146.31,10.4977]
[1642148556992,31.02125912,146.4,146.31,10.4977]
[1642148557894,31.02125912,146.4,146.31,10.7577]
[1642148558896,10.2472,146.43,146.31,10.7577]
[1642148559094,2.732,146.42,146.32,67.85]
[1642148559297,5.83310378,146.45,146.38,10.243]
[1642148559495,5.83310378,146.45,146.39,67.85]
[1642148559895,5.83310378,146.45,146.39,68.1]
[1642148560095,3.91762236,146.47,146.39,68.1]
[1642148560995,3.91762236,146.47,146.41,67.85]
[1642148561395,3.91762236,146.47,146.41,68.36]
[1642148561623,5.83310378,146.49,146.41,68.36]
[1642148561828,2.731,146.51,146.41,69.84722779]
[1642148561829,5.83310378,146.51,146.41,69.84722779]
[1642148562024,5.83310378,146.51,146.41,75.84722779]
[1642148562223,5.83310378,146.51,146.43,10.2398]
[1642148562424,0.34280299,146.56,146.45,71.0]
[1642148562623,0.34280299,146.56,146.46,70.58]
[1642148563024,0.34280299,146.56,146.46,71.09]
[1642148563226,0.34280299,146.56,146.46,76.83]
[1642148563424,23.20079381,146.55,146.46,2.98]
[1642148563625,2.73,146.54,146.46,0.25]
[1642148563826,2.23,146.54,146.46,0.25]
[1642148564026,2.48,146.54,146.41,70.58]
[1642148564428,2.48,146.54,146.41,76.84]
[1642148564825,2.48,146.54,146.41,123.1205]
[1642148565027,3.9157112,146.53,146.41,123.1205]
[1642148565227,3.9157112,146.53,146.46,10.2376]
[1642148565425,4.1657112,146.53,146.46,10.2376]
[1642148565830,23.76573236,146.52,146.42,67.85]
[1642148566026,23.76573236,146.52,146.43,0.25]
[1642148566027,2.73,146.51,146.43,0.25]
[1642148566427,2.73,146.51,146.44,10.2385]
[1642148566428,2.98,146.51,146.44,10.2385]
[1642148567029,2.98,146.51,146.43,0.25]
[1642148567227,2.98,146.51,146.41,49.2605]
[1642148567830,2.98,146.51,146.41,2.98]
[1642148568129,25.07095206,146.49,146.41,2.73]
[1642148568330,2.731,146.48,146.41,2.73]
[1642148568530,4.65785959,146.48,146.41,2.73]
[1642148569132,4.40785959,146.48,146.34,2.731]
[1642148569334,2.731,146.48,146.38,10.2426]
[1642148569535,3.91662034,146.47,146.38,10.4926]
[1642148569735,22.93500413,146.46,146.38,10.4926]
[1642148569936,22.93500413,146.46,146.36,2.731]
[1642148570134,2.732,146.45,146.35,23.7415]
[1642148570536,10.2459,146.44,146.33,23.6114]
[1642148570738,24.47989494,146.42,146.33,23.6114]
[1642148571134,24.72989494,146.42,146.33,23.6114]
[1642148571336,30.52189494,146.42,146.31,26.3947]
[1642148571535,10.2489,146.4,146.31,26.3947]
[1642148571734,28.41915506,146.39,146.31,26.3947]
[1642148571934,31.40215506,146.39,146.31,23.6627]
[1642148572535,31.15215506,146.39,146.31,23.6627]
[1642148572735,10.2477,146.42,146.31,33.9104]
[1642148572936,10.2477,146.42,146.31,34.1604]
[1642148573536,10.2477,146.42,146.31,23.9127]
[1642148573736,31.25056262,146.41,146.31,23.9127]
[1642148573939,44.48116262,146.41,146.31,23.9127]
[1642148574136,41.74916262,146.41,146.31,23.9127]
[1642148575136,41.49916262,146.41,146.31,23.9127]
[1642148575336,41.49916262,146.41,146.32,2.732]
[1642148575537,41.49916262,146.41,146.32,0.25]
[1642148576440,41.74916262,146.41,146.32,0.25]
[1642148576738,41.74916262,146.41,146.31,23.9127]
[1642148576939,43.42602221,146.41,146.31,23.6627]
[1642148577143,43.42602221,146.41,146.29,70.582]
[1642148577339,41.74916262,146.41,146.29,70.582]
[1642148577641,41.74916262,146.41,146.29,2.732]
[1642148577840,43.42602221,146.41,146.29,2.732]
[1642148578240,50.72402221,146.41,146.29,2.732]
[1642148578440,2.733,146.4,146.29,0.25]
[1642148578839,1.67685959,146.39,146.28,25.2333]
[1642148579040,31.54637503,146.38,146.28,25.2333]
[1642148579442,31.79637503,146.38,146.28,25.2333]
[1642148580373,31.54637503,146.38,146.28,25.2333]
[1642148580546,28.81337503,146.38,146.29,2.733]
[1642148581341,2.733,146.4,146.29,2.733]
[1642148581545,2.733,146.42,146.29,2.733]
[1642148581742,2.733,146.42,146.29,2.993]
[1642148581944,2.733,146.44,146.29,3.243]
[1642148582142,3.90115764,146.41,146.29,3.243]
[1642148582343,3.90115764,146.41,146.29,4.73022779]
[1642148582646,3.90115764,146.41,146.3,67.85]
[1642148583042,3.90115764,146.41,146.3,75.84722779]
[1642148583242,27.64570624,146.44,146.3,75.84722779]
[1642148583243,27.64570624,146.44,146.3,79.7341853]
[1642148583844,28.47785764,146.45,146.3,86.39550157]
[1642148584043,28.47785764,146.45,146.31,2.732]
[1642148584444,28.47785764,146.45,146.32,1.48722779]
[1642148584643,28.47785764,146.45,146.33,2.732]
[1642148585145,53.08150264,146.45,146.33,78.57922779]
[1642148585347,53.08150264,146.45,146.33,72.57922779]
[1642148585945,53.08150264,146.45,146.34,3.88695751]
[1642148586953,53.08150264,146.45,146.33,2.732]
[1642148587152,2.732,146.44,146.32,2.732]
[1642148587553,2.982,146.44,146.32,2.982]
[1642148589388,56.98266028,146.45,146.32,2.982]
[1642148589389,32.40596028,146.45,146.32,2.982]
[1642148589589,32.40596028,146.45,146.32,3.242]
[1642148590390,28.50480264,146.45,146.32,3.242]
[1642148591491,28.50480264,146.45,146.33,3.83033826]
[1642148591894,28.50480264,146.45,146.33,4.34033826]
[1642148592494,3.90115764,146.47,146.34,1.48723599]
[1642148592692,3.90115764,146.47,146.34,69.33723599]
[1642148592894,3.90115764,146.47,146.34,75.84723599]
[1642148593094,3.90115764,146.47,146.35,1.48723599]
[1642148593395,3.90115764,146.47,146.36,2.732]
[1642148593593,3.90115764,146.47,146.36,71.092]
[1642148593793,23.8889197,146.5,146.36,78.57923599]
[1642148593993,23.8889197,146.5,146.36,71.092]
[1642148594193,3.90115764,146.51,146.36,71.092]
[1642148594395,3.90115764,146.51,146.36,72.57923599]
[1642148594594,3.90115764,146.51,146.36,78.57923599]
[1642148594795,3.90115764,146.5,146.36,78.57923599]
[1642148595195,35.85853437,146.5,146.36,78.57923599]
[1642148595595,31.95737673,146.5,146.38,67.85]
[1642148595796,31.95737673,146.5,146.39,2.731]
[1642148596000,34.93837673,146.5,146.37,3.80782892]
[1642148596196,1.67685959,146.49,146.37,3.80782892]
[1642148596399,23.20946813,146.47,146.37,3.80782892]
[1642148596599,2.731,146.46,146.35,3.91900614]
[1642148597001,2.981,146.46,146.35,3.91900614]
[1642148597599,6.88215764,146.46,146.31,3.91900614]
[1642148597997,6.88215764,146.46,146.32,1.48723599]
[1642148598199,6.88215764,146.46,146.32,69.33723599]
[1642148598397,6.88215764,146.46,146.32,69.84723599]
[1642148598599,2.981,146.46,146.32,69.84723599]
[1642148598797,2.731,146.46,146.32,69.84723599]
[1642148598997,2.731,146.46,146.33,1.49128786]
[1642148599197,3.90115764,146.47,146.34,2.732]
[1642148599399,3.90115764,146.47,146.34,70.582]
[1642148599699,3.90115764,146.47,146.35,1.49128786]
[1642148599898,3.90115764,146.47,146.36,2.732]
[1642148600198,6.63215764,146.51,146.36,80.75100614]
[1642148600403,6.63215764,146.51,146.36,82.502294]
[1642148600697,3.90115764,146.51,146.36,82.502294]
[1642148601298,3.90115764,146.52,146.37,3.84584292]
[1642148601498,3.90115764,146.52,146.38,70.581]